bitfinex/quotes_ETHUSD_20250518
["timestamp","ask_amount","ask_price","bid_price","bid_amount"]
[1747539192813,21.47225722,2478.2,2477.9,1.51503721]
[1747539192814,17.437,2478.2,2477.9,1.51503721]
[1747539193010,4.03488505,2478.4,2477.9,5.55061427]
[1747539193210,4.03488505,2478.4,2478.1,0.55]
[1747539193528,4.03488505,2478.4,2478.3,0.55]
[1747539194100,18.76404569,2479.1,2478.3,1.3924]
[1747539194305,16.463,2479.0,2478.4,0.38382478]
[1747539194534,4.03447516,2478.7,2478.5,0.77525291]
[1747539194899,4.03453562,2478.6,2478.5,0.77525291]
[1747539195098,4.03453562,2478.6,2478.5,0.22525291]
[1747539195322,4.0342145,2478.8,2478.6,0.55]
[1747539195606,12.2882145,2478.8,2478.6,0.55]
[1747539195804,16.463,2478.8,2478.6,0.55]
[1747539196029,4.03402499,2479.0,2478.6,0.55]
[1747539196203,21.46875893,2479.1,2478.6,5.18805822]
[1747539196204,8.254,2478.8,2478.6,5.18805822]
[1747539196832,8.254,2478.8,2478.7,0.77493256]
[1747539197350,8.254,2478.8,2478.7,0.93362768]
[1747539197763,21.4687923,2479.1,2478.7,0.93362768]
[1747539197950,16.46,2478.9,2478.7,0.93362768]
[1747539198272,8.254,2478.9,2478.7,5.60940788]
[1747539198559,33.891,2479.1,2478.8,4.03409902]
[1747539198851,17.435,2479.1,2478.9,0.55]
[1747539199056,33.889,2479.1,2478.9,0.55]
[1747539199256,33.889,2479.1,2478.9,1.54462369]
[1747539199448,33.889,2479.1,2478.9,1.92825137]
[1747539199627,33.883,2479.1,2478.9,0.93362768]
[1747539199956,4.03388463,2479.0,2478.9,0.38362768]
[1747539200558,4.03388463,2479.0,2478.7,0.55]
[1747539200747,4.0342101,2478.8,2478.7,0.55]
[1747539200931,4.03413763,2478.9,2478.7,0.55]
[1747539201449,4.0342101,2478.8,2478.7,0.55]
[1747539202255,4.0342101,2478.8,2478.6,0.48205364]
[1747539202256,4.03437285,2478.7,2478.6,0.48205364]
[1747539202566,4.03466573,2478.6,2478.4,0.55]
[1747539202753,12.2856984,2478.5,2478.4,0.55]
[1747539202960,12.28583443,2478.5,2478.1,0.55]
[1747539203261,12.28583443,2478.5,2478.2,3.54587318]
[1747539203618,12.28583443,2478.5,2478.3,0.55]
[1747539203818,8.251,2478.5,2478.3,0.55]
[1747539204019,12.28571983,2478.5,2478.3,0.55]
[1747539205830,4.0348612,2478.4,2478.3,0.55]
[1747539206051,4.03525855,2478.2,2478.1,0.55]
[1747539206749,4.03535534,2478.1,2477.8,0.55]
[1747539206960,4.03526777,2478.2,2478.0,0.55]
[1747539207466,4.03534966,2478.1,2478.0,0.55]
[1747539207629,4.03527357,2478.2,2478.0,0.55]
[1747539207829,4.03511305,2478.3,2478.0,0.55]
[1747539208131,4.03520384,2478.2,2478.0,0.55]
[1747539209067,9.0649,2478.5,2478.0,0.55]
[1747539209231,4.03463185,2478.6,2478.2,0.55]
[1747539209436,20.3396984,2478.5,2478.4,0.55]
[1747539209975,20.3396984,2478.5,2478.0,0.55]
[1747539209976,4.03511192,2478.3,2478.0,0.55]
[1747539210767,16.301,2478.3,2478.2,0.55]
[1747539211444,16.301,2478.3,2478.2,0.93334245]
[1747539211648,8.163,2478.3,2478.2,1.4526818]
[1747539211847,8.163,2478.3,2478.2,1.67739358]
[1747539213949,8.163,2478.3,2478.2,1.15805423]
[1747539214333,12.198024,2478.3,2478.2,0.60805423]
[1747539214769,12.198024,2478.3,2478.2,0.38334245]
[1747539215071,12.198024,2478.3,2478.2,0.93334245]
[1747539217989,13.63062372,2478.3,2478.2,0.38334245]
[1747539218183,14.45862372,2478.3,2478.2,0.38334245]
[1747539218393,22.45862372,2478.3,2478.2,0.38334245]
[1747539219295,4.03648986,2477.4,2477.3,0.48205364]
[1747539219466,20.29548986,2477.4,2477.3,0.70788541]
[1747539220092,20.29548986,2477.4,2477.3,1.25788541]
[1747539220292,20.29548986,2477.4,2477.3,1.64333925]
[1747539220601,21.12348986,2477.4,2477.3,1.09333925]
[1747539221504,21.12348986,2477.4,2477.3,0.38545384]
[1747539222806,4.03712251,2477.1,2476.9,0.48205364]
[1747539222963,4.03712251,2477.1,2477.0,0.55]
[1747539223169,4.03712251,2477.1,2477.0,0.77558938]
[1747539224695,4.03712251,2477.1,2477.0,0.93481395]
[1747539226275,4.03712251,2477.1,2477.0,0.38481395]
[1747539227301,4.03712251,2477.1,2476.8,0.55]
[1747539228307,4.03714731,2477.0,2476.6,0.55]
[1747539228602,16.222,2476.9,2476.8,0.55]
[1747539228799,20.25930469,2476.9,2476.8,0.55]
[1747539229365,21.05400469,2476.9,2476.8,0.55]
[1747539229590,4.0374677,2476.8,2476.7,0.38426403]
[1747539229783,4.0374677,2476.8,2476.7,0.93426403]
[1747539230177,4.0374677,2476.8,2476.7,0.38426403]
[1747539230391,34.4507,2476.9,2476.4,1.14872031]
[1747539230600,4.03791503,2476.6,2476.4,1.14872031]
[1747539230811,4.03769261,2476.7,2476.4,1.14872031]
[1747539231368,4.03757981,2476.8,2476.4,1.14872031]
[1747539231571,4.03754191,2476.8,2476.4,1.14872031]
[1747539231812,4.03754191,2476.8,2476.5,0.93429767]
[1747539232905,4.03754191,2476.8,2476.4,1.72241854]
[1747539232906,8.166,2476.7,2476.6,5.68813045]
[1747539234075,8.166,2476.7,2476.6,6.07236697]
[1747539237322,8.166,2476.7,2476.6,0.60938213]
[1747539237323,12.20363071,2476.7,2476.6,0.60938213]
[1747539237690,12.20363071,2476.7,2476.6,0.38423652]
[1747539238835,8.166,2476.7,2476.6,0.38423652]
[1747539240330,17.434,2476.9,2476.7,0.55]
[1747539240530,16.021,2476.8,2476.7,1.10398083]
[1747539242028,16.021,2476.8,2476.7,0.77537045]
[1747539242264,20.8580677,2476.8,2476.7,0.22537045]
[1747539242430,20.8580677,2476.8,2476.4,1.14872031]
[1747539242620,4.03795679,2476.5,2476.4,1.14872031]
[1747539244067,7.996,2476.5,2476.4,1.60182996]
[1747539244877,0.7996,2476.8,2476.5,0.55]
[1747539245169,16.008,2476.7,2476.5,0.55]
[1747539245467,4.03779374,2476.6,2476.4,0.66666667]
[1747539245631,0.7996,2476.6,2476.4,0.66666667]
[1747539245812,17.434,2476.9,2476.5,0.55]
[1747539245813,0.7996,2476.8,2476.5,0.55]
[1747539246011,16.013,2476.7,2476.5,0.55]
[1747539246233,20.05065677,2476.7,2476.5,0.55]
[1747539246529,20.05065677,2476.7,2476.4,0.66666667]
[1747539246530,16.013,2476.7,2476.4,0.66666667]
[1747539246711,4.03787663,2476.6,2476.4,0.66666667]
[1747539246914,4.03787663,2476.6,2476.5,0.22606723]
[1747539247516,16.013,2476.7,2476.5,0.61210456]
[1747539247913,16.013,2476.7,2476.6,0.22606723]
[1747539248765,16.013,2476.7,2476.6,0.61210456]
[1747539248923,16.004,2476.7,2476.6,0.61210456]
[1747539249961,20.04163071,2476.7,2476.6,0.61210456]
[1747539251767,20.02463071,2476.7,2476.6,0.61210456]
[1747539252368,4.03763071,2476.7,2476.6,0.61210456]
[1747539252666,15.983,2476.7,2476.6,1.16210456]
[1747539253067,20.02063071,2476.7,2476.6,1.16210456]
[1747539253356,20.02063071,2476.7,2476.6,1.6441582]
[1747539253552,20.02063071,2476.7,2476.6,1.0941582]
[1747539256444,8.016,2476.7,2476.6,1.6441582]
[1747539256636,15.972,2476.7,2476.6,1.6441582]
[1747539257126,17.434,2476.9,2476.6,1.6441582]
[1747539257321,17.434,2476.9,2476.7,0.77606723]
[1747539257561,17.434,2476.9,2476.7,4.8136057]
[1747539257857,17.434,2476.9,2476.7,4.81361041]
[1747539258230,25.45,2476.9,2476.8,0.22606723]
[1747539259061,25.45,2476.9,2476.8,0.61210456]
[1747539259862,29.48730469,2476.9,2476.8,1.16210456]
[1747539260229,25.45,2476.9,2476.8,1.16210456]
[1747539260446,29.48730469,2476.9,2476.8,1.16210456]
[1747539260647,21.47130469,2476.9,2476.8,1.16210456]
[1747539260965,33.391,2476.9,2476.8,1.16210456]
[1747539261631,37.42830469,2476.9,2476.8,1.16210456]
[1747539262069,37.42130469,2476.9,2476.8,1.16210456]
[1747539262568,21.47130469,2476.9,2476.8,1.16210456]
[1747539262736,37.41830469,2476.9,2476.8,1.16210456]
[1747539263067,21.47130469,2476.9,2476.8,1.16210456]
[1747539263268,37.41530469,2476.9,2476.8,1.16210456]
[1747539264787,37.41530469,2476.9,2476.8,0.61210456]
[1747539264935,38.24960469,2476.9,2476.8,0.61210456]
[1747539265632,39.68397601,2476.9,2476.8,0.61210456]
[1747539265831,39.68397601,2476.9,2476.7,0.64297506]
[1747539265832,4.0374677,2476.8,2476.7,0.64297506]
[1747539266047,12.8717677,2476.8,2476.7,0.64297506]
[1747539267188,28.8297677,2476.8,2476.7,0.64297506]
[1747539268490,12.8717677,2476.8,2476.7,0.64297506]
[1747539268666,12.03795679,2476.5,2476.4,0.66666667]
[1747539268868,4.03795679,2476.5,2476.4,0.66666667]
[1747539269387,19.91395679,2476.5,2476.4,0.66666667]
[1747539269597,20.74925679,2476.5,2476.4,0.66666667]
[1747539271084,4.87325679,2476.5,2476.4,0.66666667]
[1747539271289,20.74425679,2476.5,2476.4,0.66666667]
[1747539273012,19.91695679,2476.5,2476.4,0.66666667]
[1747539273298,15.879,2476.5,2476.4,1.21666667]
[1747539273999,19.91695679,2476.5,2476.4,1.21666667]
[1747539274198,15.879,2476.5,2476.4,1.21666667]
[1747539274809,19.91695679,2476.5,2476.4,1.21666667]
[1747539275395,19.91695679,2476.5,2476.4,0.66666667]
[1747539275911,4.03795679,2476.5,2476.4,0.66666667]
[1747539276093,7.938,2476.5,2476.4,0.66666667]
[1747539277683,7.938,2476.5,2476.4,1.21666667]
[1747539277883,15.912,2476.5,2476.4,1.21666667]
[1747539278284,19.94995679,2476.5,2476.4,1.60275889]
[1747539278813,19.94995679,2476.5,2476.4,1.8289937]
[1747539280720,19.94995679,2476.5,2476.4,1.2789937]
[1747539282722,19.94995679,2476.5,2476.4,0.89290148]
[1747539285527,19.94995679,2476.5,2476.4,0.22623481]
[1747539286227,4.03811995,2476.4,2476.1,0.55]
[1747539288095,4.03811995,2476.4,2476.3,0.55]
[1747539288541,19.94996185,2476.5,2476.3,0.55]
[1747539288542,19.95005066,2476.5,2476.3,0.55]
[1747539288743,15.912,2476.5,2476.4,0.38605105]
[1747539288909,7.938,2476.5,2476.4,0.93605105]
[1747539289247,18.2337,2476.9,2476.5,0.55]
[1747539289443,4.03795119,2476.6,2476.5,0.55]
[1747539289743,4.03795119,2476.6,2476.4,0.38605105]
[1747539289744,4.03795119,2476.6,2476.2,0.55]
[1747539289949,4.03772508,2476.7,2476.4,0.55]
[1747539290247,4.03780617,2476.6,2476.4,0.55]
[1747539292137,4.03780617,2476.6,2476.5,0.38608281]
[1747539292359,4.03767258,2476.7,2476.5,0.38608281]
[1747539292535,11.94679374,2476.6,2476.5,0.38608281]
[1747539292835,7.909,2476.6,2476.5,1.79438281]
[1747539293200,4.03771017,2476.7,2476.5,1.79438281]
[1747539293401,15.848,2476.6,2476.5,1.79438281]
[1747539294112,15.843,2476.6,2476.5,1.79438281]
[1747539294507,4.03771017,2476.7,2476.6,0.55]
[1747539294742,19.87771017,2476.7,2476.6,0.55]
[1747539295208,4.03779374,2476.6,2476.5,0.38608281]
[1747539296611,4.03795679,2476.5,2476.4,0.55]
[1747539297145,15.84,2476.7,2476.4,0.55]
[1747539297355,4.03789174,2476.6,2476.4,0.55]
[1747539298040,3.73789174,2476.6,2476.4,1.4201601]
[1747539298209,4.03795679,2476.5,2476.4,1.4201601]
[1747539301652,4.03781155,2476.6,2476.4,1.4201601]
[1747539301947,17.434,2476.9,2476.4,4.79459216]
[1747539302146,15.775,2476.8,2476.6,4.58769631]
[1747539302309,15.775,2476.8,2476.7,0.93682957]
[1747539302829,7.889,2476.8,2476.7,1.51658046]
[1747539303026,7.889,2476.8,2476.7,5.55421117]
[1747539303223,7.889,2476.8,2476.7,1.51658046]
[1747539304328,7.889,2476.8,2476.7,5.55421117]
[1747539304924,7.889,2476.8,2476.7,2.16110453]
[1747539306856,7.889,2476.8,2476.7,1.77427496]
[1747539307070,7.889,2476.8,2476.7,1.12975089]
[1747539307567,7.889,2476.8,2476.7,5.55378052]
[1747539307729,17.434,2476.9,2476.7,5.55378052]
[1747539307730,17.434,2476.9,2476.7,1.51614981]
[1747539307928,25.323,2476.9,2476.7,1.51614981]
[1747539308129,17.434,2476.9,2476.7,1.51614981]
[1747539308357,25.323,2476.9,2476.8,0.61978529]
[1747539308561,25.323,2476.9,2476.8,1.00618421]
[1747539309063,25.323,2476.9,2476.8,1.48907729]
[1747539309562,17.434,2476.9,2476.8,0.869292]
[1747539309731,25.322,2476.9,2476.8,0.869292]
[1747539312074,25.322,2476.9,2476.8,5.4567597]
[1747539312386,25.322,2476.9,2476.8,4.5874677]
[1747539312571,25.322,2476.9,2476.8,0.55]
[1747539312769,25.322,2476.9,2476.8,1.85679974]
[1747539314581,17.434,2476.9,2476.8,5.89426744]
[1747539314761,25.322,2476.9,2476.8,5.89426744]
[1747539315072,17.434,2476.9,2476.8,6.75506744]
[1747539315254,25.322,2476.9,2476.8,6.75506744]
[1747539316787,0.8626,2477.5,2477.0,0.55]
[1747539316788,7.888,2477.1,2477.0,0.55]
[1747539318084,7.888,2477.1,2477.0,5.2648472]
[1747539318287,7.888,2477.1,2477.0,1.2277055]
[1747539319385,7.888,2477.1,2477.0,5.2648472]
[1747539319728,7.888,2477.1,2477.0,1.2277055]
[1747539320010,7.888,2477.1,2477.0,0.55]
[1747539320498,4.0367373,2477.3,2477.0,0.55]
[1747539320713,0.8626,2477.5,2477.1,0.55]
[1747539320923,7.887,2477.2,2477.1,5.46856125]
[1747539321217,7.887,2477.4,2477.3,4.5866528]
[1747539321388,7.887,2477.4,2477.3,5.13348808]
[1747539321565,17.438,2477.6,2477.4,0.55]
[1747539321770,7.887,2477.6,2477.5,5.41732694]
[1747539323076,7.887,2477.9,2477.6,0.55]
[1747539323392,7.887,2477.9,2477.6,1.4953666]
[1747539324477,7.887,2477.9,2477.6,5.53152108]
[1747539325408,7.887,2477.9,2477.6,1.4953666]
[1747539325615,11.92275111,2477.9,2477.6,1.4953666]
[1747539325775,11.92275111,2477.9,2477.6,0.55]
[1747539326617,11.92175111,2477.9,2477.6,0.55]
[1747539326779,7.886,2477.9,2477.6,4.58603618]
[1747539327721,17.436,2478.3,2477.9,1.3541]
[1747539328014,15.763,2478.2,2478.0,0.55]
[1747539328317,15.763,2478.2,2478.0,1.49255233]
[1747539328503,0.8068,2478.7,2478.1,0.5903515]
[1747539328816,7.886,2478.5,2478.4,0.55]
[1747539329112,7.886,2478.5,2478.4,5.3889612]
[1747539329314,7.886,2478.5,2478.4,2.35150598]
[1747539329626,7.886,2478.5,2478.4,2.89873116]
[1747539329929,7.886,2478.5,2478.4,1.09722518]
[1747539330813,11.9206984,2478.5,2478.4,1.09722518]
[1747539331002,7.886,2478.5,2478.4,1.09722518]
[1747539331723,7.886,2478.5,2478.3,0.60886937]
[1747539332279,8.5427,2478.9,2478.6,0.55]
[1747539332500,20.45274735,2478.9,2478.8,0.55]
[1747539332696,20.45274735,2478.9,2478.5,0.55]
[1747539334638,4.0342101,2478.8,2478.5,0.55]
[1747539334926,4.03453562,2478.6,2478.5,0.55]
[1747539335286,4.0346984,2478.5,2478.4,0.31821557]
[1747539335686,4.0346984,2478.5,2478.4,0.86821557]
[1747539337607,7.873,2478.7,2478.5,0.55]
[1747539337805,4.03427549,2478.8,2478.5,0.55]
[1747539338123,19.78251828,2478.7,2478.5,0.55]
[1747539339137,4.03453562,2478.6,2478.5,0.55]
[1747539339290,4.0346984,2478.5,2478.4,0.31821557]
[1747539339697,4.8453984,2478.5,2478.4,0.31821557]
[1747539339913,4.8453984,2478.5,2478.4,0.86821557]
[1747539340123,4.03461562,2478.6,2478.4,0.86821557]
[1747539340429,4.0346984,2478.5,2478.4,0.86821557]
[1747539340722,4.03461884,2478.6,2478.4,0.86821557]
[1747539340929,4.0346984,2478.5,2478.4,0.86821557]
[1747539341125,4.0346984,2478.5,2478.4,0.31821557]
[1747539345246,4.03460134,2478.6,2478.4,0.86821557]
[1747539345544,11.9066984,2478.5,2478.4,0.86821557]
[1747539346546,19.7806984,2478.5,2478.4,0.86821557]
[1747539349028,19.7806984,2478.5,2478.4,1.25351963]
[1747539349458,0.8107,2478.7,2478.5,0.55]
[1747539349655,19.78053562,2478.6,2478.5,0.55]
[1747539352056,19.78053562,2478.6,2478.5,0.93530406]
[1747539353320,19.77371318,2478.6,2478.5,0.93530406]
[1747539355448,11.90171318,2478.6,2478.5,0.93530406]
[1747539355757,19.77271318,2478.6,2478.5,0.93530406]
[1747539356455,4.03453562,2478.6,2478.5,0.93530406]
[1747539356656,19.77953562,2478.6,2478.5,0.93530406]
[1747539357227,19.77753562,2478.6,2478.5,1.41716095]
[1747539361664,15.74,2478.6,2478.5,1.41716095]
[1747539361843,15.74,2478.6,2478.5,2.0266248]
[1747539362042,15.74,2478.6,2478.5,1.41716095]
[1747539363266,15.74,2478.6,2478.5,0.93530406]
[1747539363464,15.73541201,2478.6,2478.5,0.93530406]
[1747539363652,7.86541201,2478.6,2478.5,0.93530406]
[1747539363856,15.73441201,2478.6,2478.5,0.93530406]
[1747539364064,19.76894763,2478.6,2478.5,0.93530406]
[1747539365642,19.76894763,2478.6,2478.5,0.38530406]
[1747539366043,19.76894763,2478.6,2478.5,0.93530406]
[1747539367690,11.89994763,2478.6,2478.5,0.93530406]
[1747539367888,19.76794763,2478.6,2478.5,0.93530406]
[1747539368789,19.76794763,2478.6,2478.5,1.41890764]
[1747539370200,19.76794763,2478.6,2478.5,0.86890764]
[1747539370379,20.58634763,2478.6,2478.5,0.86890764]
[1747539370993,4.85293562,2478.6,2478.5,1.41890764]
[1747539371203,4.03453562,2478.6,2478.5,1.41890764]
[1747539371496,19.77153562,2478.6,2478.5,1.41890764]
[1747539371898,19.77153562,2478.6,2478.5,0.93530406]
[1747539372098,4.03451747,2478.7,2478.6,0.55]
[1747539372397,19.77151747,2478.7,2478.6,0.55]
[1747539373003,19.77151747,2478.7,2478.6,0.93530406]
[1747539373998,19.77151747,2478.7,2478.6,1.41890764]
[1747539375785,15.737,2478.7,2478.6,1.41890764]
[1747539376590,7.87,2478.7,2478.6,1.41890764]
[1747539376784,15.736,2478.7,2478.6,1.41890764]
[1747539376964,19.77037285,2478.7,2478.6,1.41890764]
[1747539377874,15.736,2478.7,2478.6,1.41890764]
[1747539378185,19.77037285,2478.7,2478.6,1.41890764]
[1747539378353,4.03437285,2478.7,2478.6,1.41890764]
[1747539378555,19.77037285,2478.7,2478.6,1.41890764]
[1747539382789,20.63167285,2478.7,2478.6,1.41890764]
[1747539385085,19.77037285,2478.7,2478.6,1.41890764]
[1747539388194,4.03432417,2478.8,2478.6,1.41890764]
[1747539388489,19.76737285,2478.7,2478.6,1.41890764]
[1747539391595,0.6667,2478.9,2478.8,0.55]
[1747539391895,0.6667,2478.9,2478.8,5.3818101]
[1747539392195,0.6667,2478.9,2478.8,1.3476]
[1747539393272,0.6667,2478.9,2478.8,1.73290406]
[1747539394884,0.6667,2478.9,2478.8,2.37537992]
[1747539395060,0.6667,2478.9,2478.8,3.03860076]
[1747539397263,0.6667,2478.9,2478.8,1.57777992]
[1747539398404,0.6667,2478.9,2478.8,0.93530406]
[1747539399515,4.70074735,2478.9,2478.8,0.38530406]
[1747539399866,4.70074735,2478.9,2478.8,0.93530406]
[1747539404707,4.69297129,2478.9,2478.8,0.93530406]
[1747539405234,0.65892394,2478.9,2478.8,0.93530406]
[1747539407552,0.65892394,2478.9,2478.8,1.56497963]
[1747539408355,0.65892394,2478.9,2478.8,5.59918973]
[1747539408907,0.65892394,2478.9,2478.8,6.67845539]
[1747539410540,0.65892394,2478.9,2478.8,14.71879095]
[1747539410745,0.65892394,2478.9,2478.8,15.32093125]
[1747539411242,0.65892394,2478.9,2478.8,21.38093125]
[1747539411845,4.03244577,2479.9,2478.8,21.38093125]
[1747539411846,19.74751702,2479.9,2479.4,5.42641807]
[1747539412141,19.74751702,2479.9,2479.6,0.55]
[1747539412310,4.03258494,2479.8,2479.6,0.55]
[1747539412511,4.03258494,2479.8,2479.7,0.77626566]
[1747539413241,19.74747774,2479.9,2479.7,0.77626566]
[1747539413446,19.74647774,2479.9,2479.7,0.77626566]
[1747539413613,11.89347774,2479.9,2479.7,0.77626566]
[1747539413809,19.74647774,2479.9,2479.8,0.38530406]
[1747539414722,11.89247774,2479.9,2479.8,0.38530406]
[1747539417354,21.98824906,2479.9,2479.8,0.38530406]
[1747539417922,4.03346874,2479.3,2479.0,0.48246133]
[1747539418237,19.74248439,2479.3,2479.0,0.48246133]
[1747539418757,19.74248439,2479.3,2479.1,0.38546822]
[1747539419161,19.74248439,2479.3,2479.1,0.93546822]
[1747539419668,4.03355921,2479.2,2479.1,0.93546822]
[1747539420048,4.03355921,2479.2,2479.1,0.55]
[1747539420869,4.03355921,2479.2,2479.1,0.77592294]
[1747539421467,4.03355921,2479.2,2479.1,1.16152776]
[1747539421861,19.74249847,2479.3,2479.2,0.55]
[1747539422261,15.709,2479.3,2479.2,0.55]
[1747539422461,15.709,2479.3,2479.2,0.77592294]
[1747539422957,4.03325014,2479.4,2479.2,2.04222776]
[1747539423151,15.698,2479.5,2479.2,2.04222776]
[1747539423152,4.03339652,2479.3,2479.2,1.16152776]
[1747539423533,19.73113832,2479.5,2479.2,1.16152776]
[1747539423534,4.03331583,2479.4,2479.2,1.16152776]
[1747539424072,4.03331583,2479.4,2479.3,0.93560482]
[1747539424464,4.02541869,2479.4,2479.3,0.93560482]
[1747539424976,4.02541869,2479.4,2479.3,1.16152776]
[1747539426279,4.83681869,2479.4,2479.3,1.16152776]
[1747539427681,4.02541869,2479.4,2479.3,1.16152776]
[1747539428558,19.72141869,2479.4,2479.3,1.16152776]
[1747539430142,4.02541869,2479.4,2479.3,1.16152776]
[1747539430344,7.849,2479.5,2479.4,0.55]
[1747539430578,7.849,2479.5,2479.4,0.77592294]
[1747539431079,15.695,2479.6,2479.4,1.29542832]
[1747539431398,15.695,2479.6,2479.5,0.22592294]
[1747539431769,4.84389295,2479.9,2479.5,0.77592294]
[1747539431970,17.424,2480.0,2479.6,1.4053]
[1747539432194,4.03251429,2479.9,2479.8,0.55]
[1747539432506,11.88051429,2479.9,2479.8,0.55]
[1747539433000,11.88051429,2479.9,2479.8,0.93560482]
[1747539433001,7.848,2479.9,2479.8,0.93560482]
[1747539433306,11.88042066,2479.9,2479.8,0.93560482]
[1747539433897,11.88042066,2479.9,2479.8,1.16156289]
[1747539435259,11.87526931,2479.9,2479.8,1.16156289]
[1747539436294,14.15804063,2479.9,2479.8,0.61156289]
[1747539436492,22.15804063,2479.9,2479.8,0.61156289]
[1747539436865,22.15804063,2479.9,2479.8,0.38560482]
[1747539437615,4.88130853,2479.6,2479.5,0.48246133]
[1747539437780,12.72430853,2479.6,2479.5,0.48246133]
[1747539438113,20.57230853,2479.6,2479.5,1.03246133]
[1747539438398,19.72390853,2479.6,2479.5,1.03246133]
[1747539438601,19.72390853,2479.6,2479.5,0.9361208]
[1747539438809,19.72390853,2479.6,2479.5,1.16236219]
[1747539442677,4.03290853,2479.6,2479.5,1.16236219]
[1747539442883,19.72290853,2479.6,2479.5,1.16236219]
[1747539445501,19.71505542,2479.6,2479.5,1.16236219]
[1747539448307,19.71505542,2479.6,2479.5,0.61236219]
[1747539450684,20.59575542,2479.6,2479.5,0.61236219]
[1747539450910,4.90575542,2479.6,2479.5,0.3861208]
[1747539451094,4.03339652,2479.3,2479.2,1.03246133]
[1747539451514,4.03339652,2479.3,2479.2,1.25887017]
[1747539452104,15.686,2479.3,2479.2,1.25887017]
[1747539452691,15.686,2479.3,2479.2,1.16283377]
[1747539452887,4.03313567,2479.5,2479.2,1.16283377]
[1747539453099,15.676,2479.3,2479.2,2.58545163]
[1747539453284,15.676,2479.3,2479.2,2.01753377]
[1747539454484,19.70939652,2479.3,2479.2,1.16283377]
[1747539455908,19.70172053,2479.3,2479.2,1.16283377]
[1747539457520,19.70072053,2479.3,2479.2,1.16283377]
[1747539465023,19.70072053,2479.3,2479.2,0.61283377]
[1747539465024,20.55142053,2479.3,2479.2,0.61283377]
[1747539465600,21.98579185,2479.3,2479.2,0.61283377]
[1747539465920,21.98579185,2479.3,2479.2,0.38642493]
[1747539466221,21.978338,2479.3,2479.2,0.38642493]
[1747539466922,4.88409652,2479.3,2479.2,0.38642493]
[1747539467122,20.55609652,2479.3,2479.2,0.38642493]
[1747539467331,4.88409652,2479.3,2479.2,0.38642493]
[1747539467496,19.70539652,2479.3,2479.2,0.38642493]
[1747539469438,21.13976784,2479.3,2479.2,0.38642493]
[1747539471441,4.03404735,2478.9,2478.7,1.03246133]
[1747539471644,4.0342101,2478.8,2478.7,1.03246133]
[1747539472135,4.03413587,2478.9,2478.8,0.55]
[1747539473041,4.03413587,2478.9,2478.8,1.16275586]
[1747539474236,4.03370081,2479.2,2478.8,1.16275586]
[1747539474441,15.67,2479.1,2479.0,0.55]
[1747539474620,7.839,2479.1,2479.0,0.55]
[1747539474938,4.03364272,2479.2,2479.0,0.55]
[1747539475155,15.67,2479.1,2479.0,0.55]
[1747539475345,15.67,2479.1,2479.0,0.93636125]
[1747539475638,7.839,2479.1,2479.0,0.93636125]
[1747539476000,11.87272191,2479.1,2479.0,1.1627226]
[1747539476640,15.669,2479.2,2479.0,1.1627226]
[1747539476852,4.03355921,2479.2,2479.0,1.1627226]
[1747539477054,4.03346706,2479.3,2479.1,0.77636135]
[1747539477256,4.03346706,2479.3,2479.2,0.55]
[1747539477257,11.86346706,2479.3,2479.2,0.55]
[1747539477416,19.70246706,2479.3,2479.2,0.55]
[1747539477617,19.70246706,2479.3,2479.2,0.93636125]
[1747539477932,19.70246706,2479.3,2479.2,1.1627226]
[1747539479112,4.03314478,2479.5,2479.2,1.1627226]
[1747539479447,19.70123894,2479.4,2479.3,0.77636135]
[1747539479819,15.668,2479.4,2479.3,0.77636135]
[1747539480022,15.668,2479.4,2479.3,1.1627226]
[1747539480451,4.03299649,2479.6,2479.3,1.1627226]
[1747539480617,4.03299649,2479.6,2479.4,0.55]
[1747539480618,7.839,2479.5,2479.4,0.55]
[1747539481069,17.421,2479.7,2479.4,0.55]
[1747539481560,17.421,2479.7,2479.6,0.55]
[1747539481862,7.839,2479.8,2479.6,1.86096133]
[1747539482055,7.839,2479.8,2479.7,0.77636135]
[1747539482718,7.839,2479.8,2479.7,1.1627226]
[1747539483042,7.839,2479.9,2479.7,1.1627226]
[1747539483243,11.87142386,2479.9,2479.7,1.1627226]
[1747539483460,4.24273572,2480.1,2479.8,0.55]
[1747539483764,4.24273572,2480.1,2479.8,0.77636135]
[1747539483765,7.827,2480.0,2479.8,0.77636135]
[1747539484355,11.85928311,2480.0,2479.8,0.77636135]
[1747539484675,7.827,2480.0,2479.9,0.22636135]
[1747539484973,7.827,2480.0,2479.9,0.6127226]
[1747539485568,11.85925806,2480.0,2479.9,0.6127226]
[1747539485777,7.827,2480.0,2479.9,0.6127226]
[1747539486156,11.85925806,2480.0,2479.9,0.6127226]
[1747539486657,11.85170915,2480.0,2479.9,0.6127226]
[1747539487338,7.81945109,2480.0,2479.9,0.6127226]
[1747539487537,7.81945109,2480.0,2479.9,1.39230832]
[1747539491847,11.85170915,2480.0,2479.9,1.39230832]
[1747539492055,11.85170915,2480.0,2479.9,1.1627226]
[1747539493372,7.81945109,2480.0,2479.9,1.1627226]
[1747539494357,11.85170915,2480.0,2479.9,1.1627226]
[1747539494548,11.85170915,2480.0,2479.9,0.93636125]
[1747539494957,4.03177035,2480.3,2479.9,0.93636125]
[1747539495171,15.646,2480.2,2479.9,1.4332717]
[1747539495564,19.67797481,2480.2,2479.9,1.4332717]
[1747539495765,19.67797481,2480.2,2480.1,0.55]
[1747539496872,19.6707301,2480.2,2480.1,0.55]
[1747539497776,19.6707301,2480.2,2479.8,0.55]
[1747539498278,4.03233685,2480.0,2479.7,0.55]
[1747539498874,4.03233685,2480.0,2479.7,1.34209613]
[1747539499056,4.03233685,2480.0,2479.8,0.61003651]
[1747539499377,4.03242066,2479.9,2479.8,1.16003651]
[1747539499543,4.82523902,2480.0,2479.8,1.16003651]
[1747539499744,4.82523902,2480.0,2479.8,0.9346723]
[1747539499943,4.03242066,2479.9,2479.8,0.9346723]
[1747539500984,4.03242066,2479.9,2479.8,0.3846723]
[1747539501338,4.91818663,2479.9,2479.8,0.3846723]
[1747539502784,4.85844589,2479.7,2479.6,0.55]
[1747539502966,20.50044589,2479.7,2479.6,0.55]